[Event "13th Arad Open 2020"]
[Site "Arad"]
[Date "2020.09.27"]
[Round "3.5"]
[White "Patrascu, Catalin-Lucian"]
[Black "Cnejev, Vladimir-Alexandru"]
[Result "1-0"]
[ECO "D35"]
[WhiteElo "2320"]
[BlackElo "2123"]
[Annotator "ChessBase"]
[PlyCount "95"]
[EventDate "2020.09.25"]
[EventType "swiss"]
[EventCountry "ROU"]
[SourceTitle "playchess.com"]
[Source "ChessBase"]
[SourceQuality "1"]
[TimeControl "5400+30"]

1. c4 {[%emt 0:00:00]} e6 {[%emt 0:00:00]} 2. Nc3 {[%emt 0:00:00]} d5 {[%emt 0:00:00]} 3. d4 {[%emt 0:00:00]} Nf6 {[%emt 0:00:00]} 4. cxd5 {[%emt 0:00:00]} exd5 {[%emt 0:00:00]} 5. Bg5 {[%emt 0:00:00]} c6 {[%emt 0:02:47]} 6. e3 {[%emt 0:00:13]} Bf5 {[%emt 0:00:06]} 7. Qf3 {[%emt 0:00:04]} Bg6 {[%emt 0:00:05]} 8. Bxf6 {[%emt 0:00:04]} Qxf6 {[%emt 0:00:02]} 9. Qxf6 {[%emt 0:00:05]} gxf6 {[%emt 0:00:03]} 10. Nf3 {[%emt 0:00:05]} Nd7 {[%emt 0:00:07]} 11. Nh4 {[%emt 0:00:08]} Be7 {[%emt 0:00:38]} 12. Ne2 {[%emt 0:01:41]} Nb6 {[%emt 0:00:12]} 13. Ng3 {[%emt 0:00:31]} Nc8 {[%emt 0:00:24]} 14. Ngf5 {[%emt 0:03:28]} Nd6 {[%emt 0:03:14]} 15. Nxd6+ {[%emt 0:16:23]} Bxd6 {[%emt 0:01:08]} 16. f4 {[%emt 0:01:53]} Be4 {[%emt 0:01:17]} 17. Kf2 {[%emt 0:02:36]} c5 {[%emt 0:05:20]} 18. dxc5 {[%emt 0:12:49]} Bxc5 {[%emt 0:00:09]} 19. Rd1 {[%emt 0:03:39]} O-O {[%emt 0:07:36]} 20. Bd3 {[%emt 0:02:40]} Rfe8 {[%emt 0:01:29]} 21. Rhe1 {[%emt 0:05:11]} d4 {[%emt 0:01:20]} 22. Bxe4 {[%emt 0:02:28]} Rxe4 {[%emt 0:00:16]} 23. exd4 {[%emt 0:01:09]} Rxd4 {[%emt 0:08:43]} 24. Rxd4 {[%emt 0:00:33]} Rd8 {[%emt 0:02:40]} 25. Kf3 {[%emt 0:05:09]} Rxd4 {[%emt 0:13:39]} 26. Re8+ {[%emt 0:00:15]} Bf8 {[%emt 0:00:01]} 27. Rb8 {[%emt 0:13:11]} b6 {[%emt 0:02:14]} 28. Nf5 {[%emt 0:07:18]} Rd2 {[%emt 0:01:16]} 29. h4 {[%emt 0:00:29]} h5 {[%emt 0:07:33]} 30. g4 {[%emt 0:00:53]} hxg4+ {[%emt 0:01:09]} 31. Kxg4 {[%emt 0:00:10]} Rxb2 {[%emt 0:00:40]} 32. h5 {[%emt 0:01:53]} Rxa2 {[%emt 0:05:29]} 33. h6 {[%emt 0:04:47]} Rg2+ {[%emt 0:06:28]} 34. Kf3 {[%emt 0:01:57]} Rd2 {[%emt 0:01:03]} 35. Ne7+ {[%emt 0:01:27]} Kh7 {[%emt 0:00:06]} 36. Rxf8 {[%emt 0:00:04]} Kxh6 {[%emt 0:00:05]} 37. Rxf7 {[%emt 0:00:17]} b5 {[%emt 0:00:47]} 38. Rxf6+ {[%emt 0:01:40]} Kg7 {[%emt 0:00:07]} 39. Ra6 {[%emt 0:00:29]} b4 {[%emt 0:01:10]} 40. Nf5+ {[%emt 0:00:48]} Kf7 {[%emt 0:00:21]} 41. Rxa7+ {[%emt 0:00:25]} Kf6 {[%emt 0:01:32]} 42. Ne3 {[%emt 0:00:17]} b3 {[%emt 0:03:46]} 43. Rb7 {[%emt 0:00:45]} Rb2 {[%emt 0:00:44]} 44. Rb6+ {[%emt 0:00:44]} Kf7 {[%emt 0:00:32]} 45. Nc4 {[%emt 0:01:08]} Rb1 {[%emt 0:01:10]} 46. Nd2 {[%emt 0:00:35]} Rd1 {[%emt 0:00:43]} 47. Nxb3 {[%emt 0:00:30]} Rb1 {[%emt 0:00:13]} 48. Ke4 {[%emt 0:00:44]} 1-0

[Event "13th Arad Open 2020"]
[Site "Arad"]
[Date "2020.09.27"]
[Round "3.6"]
[White "Antonica, Dragos-Andrei"]
[Black "Magold, Filip"]
[Result "1-0"]
[ECO "E44"]
[WhiteElo "2301"]
[BlackElo "2043"]
[Annotator "ChessBase"]
[PlyCount "49"]
[EventDate "2020.09.25"]
[EventType "swiss"]
[EventCountry "ROU"]
[SourceTitle "playchess.com"]
[Source "ChessBase"]
[SourceQuality "1"]
[TimeControl "5400+30"]

1. d4 {[%emt 0:00:00]} Nf6 {[%emt 0:00:00]} 2. c4 {[%emt 0:00:00]} e6 {[%emt 0:00:00]} 3. Nc3 {[%emt 0:00:00]} Bb4 {[%emt 0:00:00]} 4. e3 {[%emt 0:00:00]} b6 {[%emt 0:00:33]} 5. Nge2 {[%emt 0:00:35]} Bb7 {[%emt 0:01:56]} 6. a3 {[%emt 0:00:05]} Bxc3+ {[%emt 0:02:29]} 7. Nxc3 {[%emt 0:00:03]} O-O {[%emt 0:00:10]} 8. Bd3 {[%emt 0:09:16]} d6 {[%emt 0:02:09]} 9. e4 {[%emt 0:02:49]} Nbd7 {[%emt 0:03:55]} 10. O-O {[%emt 0:01:20]} c5 {[%emt 0:01:05]} 11. d5 {[%emt 0:00:27]} Ne5 {[%emt 0:00:49]} 12. Bf4 {[%emt 0:13:13]} Nxd3 {[%emt 0:14:00]} 13. Qxd3 {[%emt 0:00:02]} exd5 {[%emt 0:00:14]} 14. exd5 {[%emt 0:03:49]} Nh5 {[%emt 0:07:07]} 15. Qf3 {[%emt 0:09:15]} Nxf4 {[%emt 0:05:59]} 16. Qxf4 {[%emt 0:00:02]} Qd7 {[%emt 0:02:38]} 17. Rae1 {[%emt 0:05:45]} Rad8 {[%emt 0:10:43]} 18. Ne4 {[%emt 0:09:24]} Kh8 {[%emt 0:05:48]} 19. Nf6 {[%emt 0:12:33]} Qc8 {[%emt 0:11:53]} 20. Re3 {[%emt 0:00:53]} h6 {[%emt 0:10:29]} 21. Rh3 {[%emt 0:02:38]} Qxh3 {[%emt 0:00:28]} 22. gxh3 {[%emt 0:00:08]} Bc8 {[%emt 0:00:44]} 23. Kh1 {[%emt 0:01:57]} Bxh3 {[%emt 0:02:04]} 24. Rg1 {[%emt 0:00:11]} Bc8 {[%emt 0:00:45]} 25. Nh5 {[%emt 0:01:28]} 1-0

[Event "13th Arad Open 2020"]
[Site "Arad"]
[Date "2020.09.27"]
[Round "3.7"]
[White "Coca, Cristi-Iulian"]
[Black "Filip, Lucian-Ioan"]
[Result "0-1"]
[ECO "A05"]
[WhiteElo "2099"]
[BlackElo "2432"]
[Annotator "ChessBase"]
[PlyCount "64"]
[EventDate "2020.09.25"]
[EventType "swiss"]
[EventCountry "ROU"]
[SourceTitle "playchess.com"]
[Source "ChessBase"]
[SourceQuality "1"]
[TimeControl "5400+30"]

1. Nf3 {[%emt 0:00:00]} Nf6 {[%emt 0:00:00]} 2. g3 {[%emt 0:00:00]} d5 {[%emt 0:00:25]} 3. Bg2 {[%emt 0:00:00]} Bf5 {[%emt 0:00:14]} 4. O-O {[%emt 0:00:02]} e6 {[%emt 0:00:07]} 5. d3 {[%emt 0:00:14]} h6 {[%emt 0:00:14]} 6. Nbd2 {[%emt 0:00:26]} Be7 {[%emt 0:00:25]} 7. Re1 {[%emt 0:00:28]} O-O {[%emt 0:01:07]} 8. c4 {[%emt 0:01:23]} c6 {[%emt 0:03:44]} 9. a3 {[%emt 0:04:49]} a5 {[%emt 0:01:19]} 10. b3 {[%emt 0:07:31]} Bh7 {[%emt 0:01:12]} 11. Bb2 {[%emt 0:00:32]} Nbd7 {[%emt 0:01:02]} 12. Rc1 {[%emt 0:02:30]} Qb6 {[%emt 0:01:27]} 13. e4 {[%emt 0:16:04]} Nc5 {[%emt 0:30:38]} 14. Ne5 {[%emt 0:03:11]} dxe4 {[%emt 0:05:17]} 15. d4 {[%emt 0:22:03]} Nd3 {[%emt 0:00:24]} 16. Nxd3 {[%emt 0:00:10]} exd3 {[%emt 0:00:02]} 17. Qf3 {[%emt 0:12:57]} Rfd8 {[%emt 0:06:16]} 18. Bf1 {[%emt 0:02:34]} Rxd4 {[%emt 0:00:53]} 19. Bxd4 {[%emt 0:11:11]} Qxd4 {[%emt 0:01:01]} 20. Ra1 {[%emt 0:04:24]} Rd8 {[%emt 0:03:50]} 21. Ra2 {[%emt 0:02:37]} Bc5 {[%emt 0:04:43]} 22. Rd1 {[%emt 0:01:44]} e5 {[%emt 0:11:50]} 23. b4 {[%emt 0:05:41]} e4 {[%emt 0:01:02]} 24. Qf4 {[%emt 0:00:21]} g5 {[%emt 0:00:42]} 25. Qe3 {[%emt 0:00:06]} Qxe3 {[%emt 0:00:11]} 26. fxe3 {[%emt 0:00:03]} Bxe3+ {[%emt 0:01:53]} 27. Kg2 {[%emt 0:00:01]} axb4 {[%emt 0:07:13]} 28. axb4 {[%emt 0:00:04]} Bxd2 {[%emt 0:00:03]} 29. Raxd2 {[%emt 0:00:25]} Ng4 {[%emt 0:00:08]} 30. Ra1 {[%emt 0:01:40]} Ne3+ {[%emt 0:02:38]} 31. Kg1 {[%emt 0:00:35]} Nxc4 {[%emt 0:00:41]} 32. Rda2 {[%emt 0:00:04]} Kg7 {[%emt 0:02:52]} 0-1

[Event "13th Arad Open 2020"]
[Site "Arad"]
[Date "2020.09.27"]
[Round "3.8"]
[White "Ungureanu, Sandu"]
[Black "Talu, Mircea"]
[Result "0-1"]
[ECO "B33"]
[WhiteElo "2059"]
[BlackElo "2351"]
[Annotator "ChessBase"]
[PlyCount "22"]
[EventDate "2020.09.25"]
[EventType "swiss"]
[EventCountry "ROU"]
[SourceTitle "playchess.com"]
[Source "ChessBase"]
[SourceQuality "1"]
[TimeControl "5400+30"]

1. e4 {[%emt 0:00:00]} c5 {[%emt 0:00:59]} 2. Nf3 {[%emt 0:00:00]} Nc6 {[%emt 0:00:29]} 3. d4 {[%emt 0:00:37]} cxd4 {[%emt 0:00:09]} 4. Nxd4 {[%emt 0:00:06]} Nf6 {[%emt 0:00:11]} 5. f3 {[%emt 0:00:05]} e6 {[%emt 0:00:44]} 6. c4 {[%emt 0:01:09]} d5 {[%emt 0:02:14]} 7. cxd5 {[%emt 0:01:03]} exd5 {[%emt 0:02:27]} 8. Bb5 {[%emt 0:03:01]} Bd7 {[%emt 0:06:24]} 9. exd5 {[%emt 0:01:33]} Nxd5 {[%emt 0:12:37]} 10. Nxc6 {[%emt 0:01:16]} bxc6 {[%emt 0:00:40]} 11. Bc4 {[%emt 0:00:21]} Qh4+ {[%emt 0:00:05]} 0-1

[Event "13th Arad Open 2020"]
[Site "Arad"]
[Date "2020.09.27"]
[Round "3.9"]
[White "Dobrin, Ionut-Alexandru"]
[Black "Ghimpu, Samuel-Timotei"]
[Result "0-1"]
[ECO "D80"]
[WhiteElo "2040"]
[BlackElo "2302"]
[Annotator "ChessBase"]
[PlyCount "91"]
[EventDate "2020.09.25"]
[EventType "swiss"]
[EventCountry "ROU"]
[SourceTitle "playchess.com"]
[Source "ChessBase"]
[SourceQuality "1"]
[TimeControl "5400+30"]

1. d4 {[%emt 0:00:00]} Nf6 {[%emt 0:00:00]} 2. c4 {[%emt 0:00:00]} g6 {[%emt 0:00:00]} 3. Nc3 {[%emt 0:00:00]} d5 {[%emt 0:00:00]} 4. Bg5 {[%emt 0:00:00]} Ne4 {[%emt 0:00:00]} 5. Bh4 {[%emt 0:00:00]} Nxc3 {[%emt 0:00:00]} 6. bxc3 {[%emt 0:00:03]} dxc4 {[%emt 0:00:00]} 7. e3 {[%emt 0:02:10]} Be6 {[%emt 0:00:06]} 8. Nf3 {[%emt 0:00:03]} Bg7 {[%emt 0:00:03]} 9. Qb1 {[%emt 0:06:28]} b6 {[%emt 0:00:03]} 10. Be2 {[%emt 0:03:17]} O-O {[%emt 0:00:31]} 11. O-O {[%emt 0:05:15]} c5 {[%emt 0:04:00]} 12. Ng5 {[%emt 0:06:31]} Bd5 {[%emt 0:01:16]} 13. e4 {[%emt 0:02:32]} Bb7 {[%emt 0:01:35]} 14. Bxc4 {[%emt 0:01:32]} cxd4 {[%emt 0:01:30]} 15. Qb3 {[%emt 0:00:48]} Qe8 {[%emt 0:00:52]} 16. cxd4 {[%emt 0:07:00]} Nc6 {[%emt 0:01:32]} 17. Rad1 {[%emt 0:19:08]} Nxd4 {[%emt 0:01:10]} 18. Qa3 {[%emt 0:00:59]} e6 {[%emt 0:10:31]} 19. Qe3 {[%emt 0:08:29]} b5 {[%emt 0:08:34]} 20. Bb3 {[%emt 0:14:02]} Nxb3 {[%emt 0:01:43]} 21. axb3 {[%emt 0:00:24]} h6 {[%emt 0:18:54]} 22. Nf3 {[%emt 0:00:28]} f5 {[%emt 0:00:45]} 23. Bg3 {[%emt 0:04:00]} Bxe4 {[%emt 0:02:58]} 24. Bd6 {[%emt 0:00:09]} Rf7 {[%emt 0:02:14]} 25. Ne5 {[%emt 0:00:13]} Rb7 {[%emt 0:00:01]} 26. Rc1 {[%emt 0:04:17]} Rd8 {[%emt 0:03:00]} 27. Rfd1 {[%emt 0:01:48]} Rxd6 {[%emt 0:05:03]} 28. Rxd6 {[%emt 0:00:00]} Bxe5 {[%emt 0:00:02]} 29. Ra6 {[%emt 0:00:18]} g5 {[%emt 0:01:00]} 30. g3 {[%emt 0:01:34]} Qd7 {[%emt 0:02:32]} 31. h4 {[%emt 0:00:54]} Rc7 {[%emt 0:03:04]} 32. hxg5 {[%emt 0:01:21]} Qd3 {[%emt 0:00:53]} 33. Qxd3 {[%emt 0:01:23]} Rxc1+ {[%emt 0:00:19]} 34. Qf1 {[%emt 0:00:13]} Rxf1+ {[%emt 0:00:08]} 35. Kxf1 {[%emt 0:00:01]} Bd5 {[%emt 0:00:23]} 36. gxh6 {[%emt 0:03:02]} Kh7 {[%emt 0:00:06]} 37. Rxa7+ {[%emt 0:02:19]} Kxh6 {[%emt 0:00:01]} 38. Ra3 {[%emt 0:00:37]} b4 {[%emt 0:00:14]} 39. Ra5 {[%emt 0:00:51]} Bc3 {[%emt 0:00:53]} 40. Ke2 {[%emt 0:00:22]} Bxb3 {[%emt 0:00:20]} 41. Kd3 {[%emt 0:00:17]} Bd5 {[%emt 0:00:16]} 42. Ra7 {[%emt 0:01:40]} Be1 {[%emt 0:00:21]} 43. Ke2 {[%emt 0:00:39]} b3 {[%emt 0:00:10]} 44. Ra1 {[%emt 0:00:20]} Bc3 {[%emt 0:00:29]} 45. Rb1 {[%emt 0:00:53]} b2 {[%emt 0:00:02]} 46. Ra1 0-1

[Event "13th Arad Open 2020"]
[Site "Arad"]
[Date "2020.09.27"]
[Round "3.10"]
[White "Oltean, Cristian-Daniel"]
[Black "Carasca, Bogdan-Petru"]
[Result "1/2-1/2"]
[ECO "B90"]
[WhiteElo "2001"]
[BlackElo "2132"]
[Annotator "ChessBase"]
[PlyCount "125"]
[EventDate "2020.09.25"]
[EventType "swiss"]
[EventCountry "ROU"]
[SourceTitle "playchess.com"]
[Source "ChessBase"]
[SourceQuality "1"]
[TimeControl "5400+30"]

1. e4 {[%emt 0:00:00]} c5 {[%emt 0:00:00]} 2. Nf3 {[%emt 0:00:00]} d6 {[%emt 0:00:00]} 3. d4 {[%emt 0:00:08]} cxd4 {[%emt 0:00:00]} 4. Nxd4 {[%emt 0:00:05]} Nf6 {[%emt 0:00:09]} 5. Nc3 {[%emt 0:00:10]} a6 {[%emt 0:00:08]} 6. h3 {[%emt 0:00:15]} e5 {[%emt 0:00:49]} 7. Nde2 {[%emt 0:02:32]} Be7 {[%emt 0:00:34]} 8. g4 {[%emt 0:01:48]} h6 {[%emt 0:00:31]} 9. Be3 {[%emt 0:03:04]} b5 {[%emt 0:01:12]} 10. Bg2 {[%emt 0:02:51]} Bb7 {[%emt 0:05:07]} 11. O-O {[%emt 0:05:08]} O-O {[%emt 0:03:09]} 12. Ng3 {[%emt 0:03:46]} b4 {[%emt 0:02:21]} 13. Nd5 {[%emt 0:02:52]} Nxd5 {[%emt 0:00:32]} 14. exd5 {[%emt 0:00:45]} Bg5 {[%emt 0:01:09]} 15. Bxg5 {[%emt 0:27:25]} hxg5 {[%emt 0:02:43]} 16. Qd2 {[%emt 0:03:04]} a5 {[%emt 0:01:57]} 17. a3 {[%emt 0:07:29]} Na6 {[%emt 0:02:09]} 18. axb4 {[%emt 0:08:47]} axb4 {[%emt 0:02:54]} 19. Ra4 {[%emt 0:03:48]} f6 {[%emt 0:02:59]} 20. Rfa1 {[%emt 0:09:14]} Qb6 {[%emt 0:03:14]} 21. Nf5 {[%emt 0:06:23]} Nc5 {[%emt 0:11:11]} 22. Rxa8 {[%emt 0:00:18]} Rxa8 {[%emt 0:02:28]} 23. Rxa8+ {[%emt 0:00:08]} Bxa8 {[%emt 0:00:05]} 24. h4 {[%emt 0:03:55]} gxh4 {[%emt 0:17:18]} 25. g5 {[%emt 0:01:46]} Kf7 {[%emt 0:16:26]} 26. Nxh4 {[%emt 0:01:24]} g6 {[%emt 0:01:52]} 27. gxf6 {[%emt 0:00:29]} Qd8 {[%emt 0:00:13]} 28. Qxb4 {[%emt 0:01:28]} Qxf6 {[%emt 0:01:23]} 29. Qg4 {[%emt 0:01:05]} g5 {[%emt 0:03:52]} 30. Nf5 {[%emt 0:01:25]} Bb7 {[%emt 0:02:08]} 31. b4 {[%emt 0:01:43]} Na4 {[%emt 0:00:08]} 32. Ne3 {[%emt 0:00:23]} Ke8 {[%emt 0:04:21]} 33. Qc4 {[%emt 0:01:15]} Qe7 {[%emt 0:01:41]} 34. Bh3 {[%emt 0:00:49]} Kf8 {[%emt 0:00:56]} 35. Qb5 {[%emt 0:01:01]} Nc3 {[%emt 0:00:19]} 36. Qc4 {[%emt 0:00:25]} Na4 {[%emt 0:00:09]} 37. Nf5 {[%emt 0:00:41]} Qd7 {[%emt 0:01:50]} 38. Bg4 {[%emt 0:00:39]} Nb6 {[%emt 0:00:43]} 39. Ne3 {[%emt 0:00:30]} Qf7 {[%emt 0:01:07]} 40. Qd3 {[%emt 0:00:27]} Nxd5 {[%emt 0:03:23]} 41. c4 {[%emt 0:00:28]} Nxb4 {[%emt 0:01:02]} 42. Qxd6+ {[%emt 0:00:08]} Qe7 {[%emt 0:00:05]} 43. Qb8+ {[%emt 0:00:30]} Kf7 {[%emt 0:00:17]} 44. Nf5 {[%emt 0:00:27]} Nc6 {[%emt 0:00:19]} 45. Qh8 {[%emt 0:00:25]} Qb4 {[%emt 0:00:47]} 46. Nh6+ {[%emt 0:00:36]} Ke7 {[%emt 0:00:36]} 47. Nf5+ {[%emt 0:00:11]} Kd7 {[%emt 0:01:07]} 48. Qg7+ {[%emt 0:00:42]} Kd8 {[%emt 0:00:33]} 49. Qxg5+ {[%emt 0:00:40]} Kc7 {[%emt 0:00:07]} 50. Be2 {[%emt 0:00:53]} Ba6 {[%emt 0:01:12]} 51. Ne3 {[%emt 0:00:20]} Qe1+ {[%emt 0:03:43]} 52. Bf1 {[%emt 0:00:08]} Bb7 {[%emt 0:00:05]} 53. Nd5+ {[%emt 0:00:25]} Kb8 {[%emt 0:00:05]} 54. Qf6 {[%emt 0:00:44]} Ka7 {[%emt 0:00:26]} 55. Qf8 {[%emt 0:00:27]} Qa5 {[%emt 0:00:21]} 56. Bg2 {[%emt 0:00:39]} Qd2 {[%emt 0:01:52]} 57. Qc5+ {[%emt 0:00:18]} Kb8 {[%emt 0:00:11]} 58. Qd6+ {[%emt 0:00:10]} Ka7 {[%emt 0:00:05]} 59. Qa3+ {[%emt 0:00:18]} Kb8 {[%emt 0:00:06]} 60. Qf8+ {[%emt 0:00:26]} Ka7 {[%emt 0:00:08]} 61. Qc5+ {[%emt 0:00:03]} Kb8 {[%emt 0:00:13]} 62. Qb6 {[%emt 0:01:25]} Qc1+ {[%emt 0:00:59]} 63. Bf1 {[%emt 0:00:53]} 1/2-1/2

[Event "13th Arad Open 2020"]
[Site "Arad"]
[Date "2020.09.28"]
[Round "4.1"]
[White "Kozak, Adam"]
[Black "Solodovnichenko, Yuri"]
[Result "1-0"]
[ECO "A07"]
[WhiteElo "2503"]
[BlackElo "2553"]
[Annotator "ChessBase"]
[PlyCount "65"]
[EventDate "2020.09.25"]
[EventType "swiss"]
[EventCountry "ROU"]
[SourceTitle "playchess.com"]
[Source "ChessBase"]
[SourceQuality "1"]
[TimeControl "5400+30"]

1. Nf3 {[%emt 0:00:00]} Nf6 {[%emt 0:00:04]} 2. g3 {[%emt 0:00:19]} d5 {[%emt 0:00:53]} 3. Bg2 {[%emt 0:00:23]} c6 {[%emt 0:00:06]} 4. O-O {[%emt 0:00:18]} Bg4 {[%emt 0:00:08]} 5. h3 {[%emt 0:01:41]} Bh5 {[%emt 0:00:21]} 6. d4 {[%emt 0:00:08]} Nbd7 {[%emt 0:02:45]} 7. c4 {[%emt 0:00:46]} e6 {[%emt 0:01:19]} 8. cxd5 {[%emt 0:00:12]} cxd5 {[%emt 0:09:26]} 9. Nc3 {[%emt 0:00:11]} Bd6 {[%emt 0:01:43]} 10. Qb3 {[%emt 0:00:22]} Qb6 {[%emt 0:01:18]} 11. e4 {[%emt 0:02:22]} Nxe4 {[%emt 0:01:58]} 12. Nxe4 {[%emt 0:01:29]} dxe4 {[%emt 0:00:06]} 13. Ng5 {[%emt 0:00:18]} Nf6 {[%emt 0:03:22]} 14. Nxe4 {[%emt 0:04:03]} Nxe4 {[%emt 0:01:50]} 15. Bxe4 {[%emt 0:00:38]} O-O-O {[%emt 0:02:24]} 16. Qxb6 {[%emt 0:25:36]} axb6 {[%emt 0:00:17]} 17. Be3 {[%emt 0:00:05]} Kb8 {[%emt 0:01:54]} 18. a4 {[%emt 0:05:55]} Be2 {[%emt 0:21:07]} 19. Rfc1 {[%emt 0:02:54]} Rc8 {[%emt 0:01:18]} 20. d5 {[%emt 0:01:34]} Bc4 {[%emt 0:02:05]} 21. Rd1 {[%emt 0:06:45]} exd5 {[%emt 0:15:18]} 22. Bxd5 {[%emt 0:00:18]} Be5 {[%emt 0:05:17]} 23. Bxb6 {[%emt 0:01:31]} Bxb2 {[%emt 0:01:38]} 24. Rab1 {[%emt 0:00:24]} Bxd5 {[%emt 0:01:51]} 25. Rxd5 {[%emt 0:02:12]} Rc2 {[%emt 0:00:21]} 26. Be3 {[%emt 0:03:36]} Re8 {[%emt 0:08:20]} 27. Rb5 {[%emt 0:00:37]} Be5 {[%emt 0:00:08]} 28. Rxb7+ {[%emt 0:00:17]} Kc8 {[%emt 0:00:03]} 29. Rxf7 {[%emt 0:06:29]} Bxg3 {[%emt 0:00:13]} 30. Rxg7 {[%emt 0:00:48]} Be5 {[%emt 0:01:05]} 31. Rxh7 {[%emt 0:01:13]} Rg8+ {[%emt 0:00:06]} 32. Kh1 {[%emt 0:00:26]} Rc4 {[%emt 0:04:12]} 33. Rc1 {[%emt 0:02:01]} 1-0

[Event "13th Arad Open 2020"]
[Site "Arad"]
[Date "2020.09.28"]
[Round "4.2"]
[White "Istratescu, Andrei"]
[Black "Patrascu, Catalin-Lucian"]
[Result "1-0"]
[ECO "D41"]
[WhiteElo "2551"]
[BlackElo "2320"]
[Annotator "ChessBase"]
[PlyCount "79"]
[EventDate "2020.09.25"]
[EventType "swiss"]
[EventCountry "ROU"]
[SourceTitle "playchess.com"]
[Source "ChessBase"]
[SourceQuality "1"]
[TimeControl "5400+30"]

1. d4 {[%emt 0:00:00]} Nf6 {[%emt 0:00:00]} 2. Nf3 {[%emt 0:00:14]} e6 {[%emt 0:00:37]} 3. c4 {[%emt 0:01:56]} d5 {[%emt 0:00:49]} 4. Nc3 {[%emt 0:00:55]} c5 {[%emt 0:04:33]} 5. cxd5 {[%emt 0:02:45]} Nxd5 {[%emt 0:00:10]} 6. e3 {[%emt 0:02:05]} a6 {[%emt 0:10:24]} 7. Bd3 {[%emt 0:01:28]} Be7 {[%emt 0:11:47]} 8. O-O {[%emt 0:02:13]} Nc6 {[%emt 0:06:32]} 9. a3 {[%emt 0:02:16]} cxd4 {[%emt 0:04:18]} 10. exd4 {[%emt 0:00:38]} Bf6 {[%emt 0:02:44]} 11. Bc2 {[%emt 0:02:59]} Nce7 {[%emt 0:06:02]} 12. Ne4 {[%emt 0:11:37]} b6 {[%emt 0:11:26]} 13. Nxf6+ {[%emt 0:02:47]} gxf6 {[%emt 0:02:42]} 14. Bh6 {[%emt 0:03:46]} Bb7 {[%emt 0:01:38]} 15. Qd2 {[%emt 0:00:56]} Qd6 {[%emt 0:04:02]} 16. Rac1 {[%emt 0:11:34]} Ng6 {[%emt 0:07:42]} 17. Rfe1 {[%emt 0:04:32]} Rg8 {[%emt 0:01:27]} 18. g3 {[%emt 0:07:07]} Rd8 {[%emt 0:13:41]} 19. Be4 {[%emt 0:03:54]} Ke7 {[%emt 0:06:57]} 20. Qd1 {[%emt 0:03:01]} Rc8 {[%emt 0:00:49]} 21. Rxc8 {[%emt 0:00:42]} Rxc8 {[%emt 0:00:06]} 22. Nd2 {[%emt 0:01:04]} Rc7 {[%emt 0:01:34]} 23. h4 {[%emt 0:00:42]} Kd7 {[%emt 0:00:46]} 24. h5 {[%emt 0:00:51]} Nge7 {[%emt 0:00:17]} 25. Bf8 {[%emt 0:06:47]} Rc8 {[%emt 0:00:53]} 26. Bxe7 {[%emt 0:00:17]} Kxe7 {[%emt 0:00:16]} 27. Bxh7 {[%emt 0:00:53]} Kf8 {[%emt 0:00:46]} 28. Be4 {[%emt 0:00:37]} f5 {[%emt 0:00:15]} 29. Bg2 {[%emt 0:00:33]} Qc7 {[%emt 0:00:35]} 30. Nf3 {[%emt 0:02:43]} Qc2 {[%emt 0:00:32]} 31. Ne5 {[%emt 0:01:08]} Qxd1 {[%emt 0:00:20]} 32. Rxd1 {[%emt 0:00:14]} Kg7 {[%emt 0:00:48]} 33. h6+ {[%emt 0:02:38]} Kg8 {[%emt 0:00:29]} 34. g4 {[%emt 0:02:36]} Rc2 {[%emt 0:00:30]} 35. Bxd5 {[%emt 0:00:22]} Bxd5 {[%emt 0:00:07]} 36. g5 {[%emt 0:00:46]} b5 {[%emt 0:00:54]} 37. Rd3 {[%emt 0:01:34]} f4 {[%emt 0:00:20]} 38. f3 {[%emt 0:00:06]} Rc1+ {[%emt 0:00:41]} 39. Kg2 {[%emt 0:00:17]} Kh7 {[%emt 0:00:30]} 40. Rc3 {[%emt 0:01:57]} 1-0

[Event "13th Arad Open 2020"]
[Site "Arad"]
[Date "2020.09.28"]
[Round "4.3"]
[White "Antonica, Dragos-Andrei"]
[Black "Manolache, Marius"]
[Result "0-1"]
[ECO "A43"]
[WhiteElo "2301"]
[BlackElo "2541"]
[Annotator "ChessBase"]
[PlyCount "80"]
[EventDate "2020.09.25"]
[EventType "swiss"]
[EventCountry "ROU"]
[SourceTitle "playchess.com"]
[Source "ChessBase"]
[SourceQuality "1"]
[TimeControl "5400+30"]

1. d4 {[%emt 0:00:00]} Nf6 {[%emt 0:00:00]} 2. c4 {[%emt 0:00:00]} c5 {[%emt 0:00:28]} 3. d5 {[%emt 0:00:00]} d6 {[%emt 0:00:14]} 4. Nc3 {[%emt 0:00:13]} e6 {[%emt 0:00:21]} 5. g3 {[%emt 0:03:19]} Be7 {[%emt 0:02:12]} 6. Bg2 {[%emt 0:01:07]} O-O {[%emt 0:01:47]} 7. Nf3 {[%emt 0:00:37]} exd5 {[%emt 0:01:33]} 8. cxd5 {[%emt 0:00:22]} Qa5 {[%emt 0:00:29]} 9. O-O {[%emt 0:02:53]} b5 {[%emt 0:00:51]} 10. Bg5 {[%emt 0:10:57]} b4 {[%emt 0:14:16]} 11. Bxf6 {[%emt 0:13:39]} Bxf6 {[%emt 0:00:09]} 12. Ne4 {[%emt 0:00:01]} Qd8 {[%emt 0:15:34]} 13. Nxf6+ {[%emt 0:17:23]} Qxf6 {[%emt 0:00:07]} 14. a3 {[%emt 0:00:08]} Na6 {[%emt 0:16:46]} 15. Qd2 {[%emt 0:17:27]} Rb8 {[%emt 0:03:04]} 16. axb4 {[%emt 0:02:50]} Rxb4 {[%emt 0:00:56]} 17. Ra2 {[%emt 0:00:59]} Nc7 {[%emt 0:01:23]} 18. Rxa7 {[%emt 0:12:15]} Rxb2 {[%emt 0:04:17]} 19. Qd3 {[%emt 0:02:21]} Nb5 20. Ra5 Bd7 {[%emt 0:08:21]} 21. e4 {[%emt 0:07:08]} Rc8 {[%emt 0:10:39]} 22. Qe3 {[%emt 0:03:58]} Qc3 {[%emt 0:06:04]} 23. Qxc3 {[%emt 0:01:26]} Nxc3 {[%emt 0:00:05]} 24. e5 {[%emt 0:00:06]} Ne2+ 25. Kh1 c4 {[%emt 0:04:45]} 26. exd6 {[%emt 0:01:37]} c3 {[%emt 0:01:13]} 27. Ng1 {[%emt 0:01:21]} Nxg1 {[%emt 0:00:40]} 28. Kxg1 {[%emt 0:00:02]} c2 {[%emt 0:01:10]} 29. Raa1 {[%emt 0:00:17]} Bf5 {[%emt 0:00:44]} 30. Rac1 {[%emt 0:00:55]} Kf8 {[%emt 0:01:31]} 31. g4 {[%emt 0:00:58]} Bxg4 {[%emt 0:01:42]} 32. Be4 {[%emt 0:00:28]} Bd1 {[%emt 0:00:42]} 33. Kg2 {[%emt 0:01:09]} Rd8 {[%emt 0:00:40]} 34. Rfxd1 {[%emt 0:00:32]} cxd1=Q {[%emt 0:00:10]} 35. Rxd1 {[%emt 0:00:01]} Rxd6 {[%emt 0:00:17]} 36. Kg3 {[%emt 0:00:59]} g6 {[%emt 0:00:41]} 37. Rc1 {[%emt 0:00:19]} Rb4 {[%emt 0:00:35]} 38. Bf3 {[%emt 0:00:30]} Rb3 {[%emt 0:00:14]} 39. Rc8+ {[%emt 0:00:39]} Kg7 {[%emt 0:00:27]} 40. Rc6 {[%emt 0:00:31]} Rxd5 0-1